fUST/lending_fUST_20251026
["ID","MTS","AMOUNT","RATE_DAILY","PERIOD"]
[392376112,1761408017057,173.9636944,0.00016343,2]
[392376113,1761408035914,2453.55059155,0.00017091,2]
[392376114,1761408035957,2546.44940845,0.00017091,2]
[392376115,1761408052138,5000.0,0.00017091,2]
[392376116,1761408060189,2453.56059155,0.00017091,2]
[392376117,1761408063163,-217.37243874,0.00017091,2]
[392376118,1761408066592,-281.98690413,0.00017091,2]
[392376120,1761408068991,568.6819817,0.00017066,2]
[392376121,1761408112041,196.0,0.00016,2]
[392376122,1761408112589,196.0,0.00016143,2]
[392376123,1761408112734,196.0,0.00016286,2]
[392376124,1761408113082,196.0,0.00016429,2]
[392376125,1761408113727,196.0,0.00016571,2]
[392376126,1761408114128,196.0,0.00016714,2]
[392376127,1761408114430,196.0,0.00016857,2]
[392376128,1761408114734,196.0,0.00017,2]
[392376130,1761408131220,240.18,0.00017162,3]
[392376131,1761408141847,720.54,0.00017162,3]
[392376132,1761408213187,-445.7824567,0.00017071,2]
[392376133,1761408227911,-2047.08006558,0.00017091,2]
[392376134,1761408228938,211.0960333,0.00016171,2]
[392376135,1761408232235,196.0,0.00016,2]
[392376136,1761408232539,196.0,0.000164,2]
[392376137,1761408232854,196.0,0.000168,2]
[392376138,1761408234438,196.0,0.00017091,2]
[392376139,1761408243022,-1913.79288832,0.00017113,2]
[392376140,1761408258111,-300.0,0.00017169,2]
[392376141,1761408273181,-228.59265884,0.0001717,2]
[392376142,1761408273223,-430.23641755,0.0001717,2]
[392376143,1761408273267,-285.6317672,0.0001717,2]
[392376144,1761408288450,-1200.0,0.0001717,2]
[392376145,1761408288494,-500.0,0.0001717,2]
[392376146,1761408288539,-500.0,0.0001717,2]
[392376147,1761408288584,-500.0,0.0001717,2]
[392376148,1761408288629,-155.0,0.0001717,2]
[392376149,1761408288680,-942.74,0.0001717,2]
[392376150,1761408288725,-987.61,0.0001717,2]
[392376151,1761408289127,-429.31,0.0001717,2]
[392376152,1761408289171,-500.0,0.0001717,2]
[392376153,1761408289216,-955.76,0.0001717,2]
[392376154,1761408289260,-500.0,0.0001717,2]
[392376155,1761408289303,-500.0,0.0001717,2]
[392376156,1761408293968,500.0,0.0001717,2]
[392376157,1761408298058,1504.51,0.0001717,2]
[392376158,1761408301875,500.0,0.0001717,2]
[392376159,1761408302260,300.0,0.0001717,2]
[392376160,1761408302302,300.0,0.0001717,2]
[392376161,1761408302927,300.0,0.0001717,2]
[392376162,1761408303497,500.0,0.0001717,2]
[392376163,1761408304021,300.0,0.0001717,2]
[392376164,1761408304831,25.36,0.0001717,2]
[392376165,1761408304872,1174.64,0.0001717,2]
[392376166,1761408307258,-1934.031985,0.00017171,2]
[392376167,1761408307368,-10000.01,0.00017171,2]
[392376168,1761408307434,-10000.01,0.00017171,2]
[392376169,1761408307535,500.0,0.0001717,2]
[392376170,1761408307597,300.0,0.0001717,2]
[392376171,1761408312463,-500.0,0.0001717,2]
[392376172,1761408312517,-1350.04,0.0001717,2]
[392376173,1761408312729,-5499.93,0.00017171,2]
[392376174,1761408312802,-10000.01,0.00017171,2]
[392376175,1761408312881,-10000.01,0.00017171,2]
[392376176,1761408341946,500.0,0.0001629,2]
[392376177,1761408346987,503.56255497,0.00015476,2]
[392376178,1761408351422,196.0,0.00016,2]
[392376179,1761408351962,196.0,0.00016333,2]
[392376180,1761408352277,196.0,0.00016667,2]
[392376181,1761408352576,196.0,0.00017,2]
[392376182,1761408354249,771.265473,0.00016172,2]
[392376183,1761408440312,335.98538502,0.00016702,2]
[392376184,1761408470631,196.0,0.00016,2]
[392376185,1761408470935,196.0,0.00017,2]
[392376186,1761408484217,198.96,0.00015984,2]
[392376190,1761408585795,396.84193095,0.00016616,2]
[392376191,1761408587857,714.31547571,0.00016616,2]
[392376192,1761408589696,1269.89417904,0.00016616,2]
[392376193,1761408590806,196.0,0.00016,2]
[392376194,1761408591115,196.0,0.00017,2]
[392376252,1761408632550,-500.0,0.00017147,2]
[392376254,1761408632559,-408.48817857,0.00017169,2]
[392376256,1761408632570,-791.51182143,0.00017169,2]
[392376258,1761408632579,-300.0,0.00017169,2]
[392376260,1761408632589,-300.0,0.00017169,2]
[392376262,1761408632598,-300.0,0.00017169,2]
[392376264,1761408632608,-300.0,0.00017169,2]
[392376266,1761408632617,-1089.3774673,0.00017169,2]
[392376270,1761408632629,-110.6225327,0.00017169,2]
[392376273,1761408632638,-300.0,0.00017169,2]
[392376276,1761408632647,-2991.71,0.00017169,2]
[392376279,1761408632656,-160.0,0.00017169,2]
[392376281,1761408632665,-537.55159984,0.00017169,2]
[392376283,1761408632674,-160.01486119,0.00017169,2]
[392376285,1761408632683,-351.04085322,0.00017169,2]
[392376288,1761408632693,-500.0,0.0001717,2]
[392376291,1761408632702,-1331.69,0.0001717,2]
[392376293,1761408632711,-500.0,0.0001717,2]
[392376295,1761408632721,-512.88206808,0.0001717,2]
[392376297,1761408632730,-500.0,0.0001717,2]
[392376299,1761408632739,-500.0,0.0001717,2]
[392376301,1761408632749,-500.0,0.0001717,2]
[392376303,1761408632758,-500.0,0.0001717,2]
[392376305,1761408632768,-512.74769931,0.0001717,2]
[392376307,1761408632777,-500.0,0.0001717,2]
[392376309,1761408632786,-993.33,0.0001717,2]
[392376311,1761408632795,-2015.95,0.0001717,2]
[392376313,1761408632804,-2494.86,0.0001717,2]
[392376315,1761408632815,-500.0,0.0001717,2]
[392376317,1761408632824,-996.0,0.0001717,2]
[392376319,1761408632834,-705.6,0.0001717,2]
[392376321,1761408632843,-500.0,0.0001717,2]
[392376323,1761408632853,-779.38,0.0001717,2]
[392376325,1761408632863,-500.0,0.0001717,2]
[392376327,1761408632872,-500.0,0.0001717,2]
[392376329,1761408632881,-500.0,0.0001717,2]
[392376330,1761408632891,-500.0,0.0001717,2]
[392376331,1761408632901,-500.0,0.0001717,2]
[392376332,1761408632910,-1696.08,0.0001717,2]
[392376333,1761408632920,-568.64987744,0.0001717,2]
[392376334,1761408632930,-500.0,0.0001717,2]
[392376335,1761408632939,-500.0,0.0001717,2]
[392376336,1761408632948,-1062.39,0.0001717,2]
[392376337,1761408632958,-500.0,0.0001717,2]
[392376338,1761408632967,-771.7,0.0001717,2]
[392376339,1761408632977,-500.0,0.0001717,2]
[392376340,1761408632987,-929.95,0.0001717,2]
[392376341,1761408632998,-1389.79,0.0001717,2]
[392376342,1761408633007,-1073.64,0.0001717,2]
[392376343,1761408633017,-756.95,0.0001717,2]
[392376344,1761408633026,-500.0,0.0001717,2]
[392376345,1761408633036,-773.5105286,0.0001717,2]
[392376357,1761408638360,-541.85,0.00017169,2]
[392376358,1761408638370,-179.0194714,0.0001717,2]
[392376359,1761408638380,-290.849993,0.0001717,2]
[392376360,1761408638391,-1133.60906219,0.0001717,2]
[392376361,1761408638402,-75.22094481,0.0001717,2]
[392376362,1761408638412,-363.1984033,0.0001717,2]
[392376363,1761408638424,-579.29207325,0.0001717,2]
[392376367,1761408638738,-603.80952345,0.0001717,2]
[392376368,1761408638749,-500.0,0.0001717,2]
[392376369,1761408638759,-1495.80283635,0.0001717,2]
[392376370,1761408638771,-942.84716365,0.0001717,2]
[392376371,1761408638780,-295.43183095,0.0001717,2]
[392376372,1761408638792,-204.56816905,0.0001717,2]
[392376373,1761408638801,-500.0,0.0001717,2]
[392376374,1761408638810,-914.92,0.0001717,2]
[392376375,1761408638819,-403.11857656,0.0001717,2]
[392376376,1761408638831,-96.88142344,0.0001717,2]
[392376377,1761408638840,-500.0,0.0001717,2]
[392376378,1761408638850,-550.23,0.0001717,2]
[392376379,1761408638860,-500.0,0.0001717,2]
[392376380,1761408638869,-1324.18,0.0001717,2]
[392376381,1761408638878,-500.0,0.0001717,2]
[392376382,1761408638887,-1246.46621817,0.0001717,2]
[392376391,1761408640557,-359.99275684,0.0001717,2]
[392376478,1761408647361,999.0,0.00016172,2]
[392376479,1761408653441,392.87,0.00017161,3]
[392376480,1761408664306,196.43,0.00017161,3]
[392376481,1761408674981,589.34,0.00017162,3]
[392376482,1761408710383,196.0,0.0001705,2]
[392376483,1761408726471,276.49,0.00017161,3]
[392376484,1761408737161,829.49,0.00017161,3]
[392376485,1761408742900,276.58616224,0.00017069,2]
[392376486,1761408757265,500.0,0.00030136,120]
[392376487,1761408780488,-1200.0,0.00017167,2]
[392376488,1761408783664,300.0,0.00017167,2]
[392376489,1761408795334,-500.0,0.00017168,2]
[392376490,1761408795384,-500.0,0.00017168,2]
[392376491,1761408795435,-500.0,0.00017168,2]
[392376492,1761408795487,-500.0,0.00017168,2]
[392376493,1761408795539,-500.0,0.00017168,2]
[392376494,1761408795586,-500.0,0.00017168,2]
[392376495,1761408795636,-500.0,0.00017168,2]
[392376496,1761408795685,-500.0,0.00017168,2]
[392376497,1761408795737,-195.0,0.00017168,2]
[392376498,1761408795784,-500.0,0.00017168,2]
[392376499,1761408795834,-110.01,0.00017168,2]
[392376500,1761408796004,-389.99,0.00017168,2]
[392376501,1761408796056,-500.0,0.00017168,2]
[392376502,1761408796103,-500.0,0.00017168,2]
[392376503,1761408796161,-500.0,0.00017168,2]
[392376504,1761408796212,-500.0,0.00017168,2]
[392376505,1761408796263,-500.0,0.00017168,2]
[392376506,1761408796308,-500.0,0.00017168,2]
[392376507,1761408796351,-500.0,0.00017168,2]
[392376508,1761408796395,-500.0,0.00017168,2]
[392376509,1761408796446,-500.0,0.00017168,2]
[392376510,1761408796697,-500.0,0.00017168,2]
[392376511,1761408796740,-233.95319957,0.00017168,2]
[392376512,1761408809587,1201.92,0.00017168,2]
[392376513,1761408810347,-500.0,0.00017169,2]
[392376514,1761408810393,-1003.89,0.00017169,2]
[392376515,1761408810435,-500.0,0.00017169,2]
[392376516,1761408810479,-500.0,0.00017169,2]
[392376517,1761408810526,-500.0,0.00017169,2]
[392376518,1761408810574,-1793.64,0.00017169,2]
[392376519,1761408810834,-500.0,0.00017169,2]
[392376520,1761408810884,-500.0,0.00017169,2]
[392376521,1761408810930,-500.69,0.00017169,2]
[392376522,1761408810980,-500.0,0.00017169,2]
[392376523,1761408811022,-500.0,0.00017169,2]
[392376524,1761408811072,-500.0,0.00017169,2]
[392376525,1761408811122,-1529.06,0.00017169,2]
[392376526,1761408811170,-440.51,0.00017169,2]
[392376527,1761408811390,-59.49,0.00017169,2]
[392376528,1761408811438,-544.94,0.00017169,2]
[392376529,1761408811496,-891.2,0.00017169,2]
[392376530,1761408811541,-500.0,0.00017169,2]
[392376531,1761408811586,-500.0,0.00017169,2]
[392376532,1761408811631,-548.02913685,0.00017169,2]
[392376533,1761408811673,-1331.88,0.00017169,2]
[392376534,1761408811714,-181.3117263,0.00017169,2]
[392376535,1761408812292,-886.3082737,0.00017169,2]
[392376536,1761408812338,-500.0,0.00017169,2]
[392376537,1761408812386,-912.84,0.00017169,2]
[392376538,1761408812432,-500.0,0.00017169,2]
[392376539,1761408812478,-1356.24,0.00017169,2]
[392376540,1761408812523,-500.0,0.00017169,2]
[392376541,1761408812568,-189.2334526,0.00017169,2]
[392376542,1761408812787,-310.7665474,0.00017169,2]
[392376543,1761408812833,-506.3,0.00017169,2]
[392376544,1761408812880,-500.0,0.00017169,2]
[392376545,1761408812928,-500.0,0.00017169,2]
[392376546,1761408812974,-1500.03,0.00017169,2]
[392376547,1761408813024,-500.0,0.00017169,2]
[392376548,1761408813069,-1022.54,0.00017169,2]
[392376549,1761408813239,-1269.0,0.00017169,2]
[392376550,1761408813284,-500.0,0.00017169,2]
[392376551,1761408813330,-554.04,0.00017169,2]
[392376552,1761408813375,-1437.19,0.00017169,2]
[392376553,1761408813419,-500.0,0.00017169,2]
[392376554,1761408813465,-500.0,0.00017169,2]
[392376555,1761408813694,-500.0,0.00017169,2]
[392376556,1761408813741,-1345.08,0.00017169,2]
[392376557,1761408813791,-500.0,0.00017169,2]
[392376558,1761408813838,-876.8,0.00017169,2]
[392376559,1761408813882,-195.905522,0.00017169,2]
[392376560,1761408813931,-722.808956,0.00017169,2]
[392376561,1761408815656,-1718.821044,0.00017169,2]
[392376562,1761408815700,-500.0,0.00017169,2]
[392376563,1761408815745,-500.0,0.00017169,2]
[392376564,1761408815789,-500.0,0.00017169,2]
[392376565,1761408816579,500.0,0.00017168,2]
[392376566,1761408816635,500.0,0.00017168,2]
[392376567,1761408816682,500.0,0.00017168,2]
[392376568,1761408816729,500.0,0.00017168,2]
[392376569,1761408816779,363.17284384,0.00017168,2]
[392376570,1761408819014,500.0,0.00017169,2]
[392376571,1761408819806,699.19506816,0.00017169,2]
[392376572,1761408819848,1380.84493184,0.00017169,2]
[392376573,1761408821049,894.13,0.00017169,2]
[392376574,1761408829285,500.0,0.00017168,2]
[392376575,1761408829329,500.0,0.00017168,2]
[392376576,1761408829376,500.0,0.00017168,2]
[392376577,1761408829426,500.0,0.00017168,2]
[392376578,1761408829487,500.0,0.00017168,2]
[392376579,1761408829534,570.83856614,0.00017168,2]
[392376580,1761408829724,500.0,0.00017169,2]
[392376581,1761408830550,196.0,0.00016,2]
[392376582,1761408830651,3481.07,0.00017169,2]
[392376583,1761408830876,196.0,0.00016182,2]
[392376584,1761408831175,196.0,0.00016364,2]
[392376585,1761408831484,196.0,0.00016545,2]
[392376586,1761408831664,500.0,0.00017169,2]
[392376587,1761408831777,196.0,0.00016727,2]
[392376588,1761408832077,196.0,0.00016909,2]
[392376589,1761408832468,196.0,0.00017091,2]
[392376590,1761408832777,505.28,0.00017168,2]
[392376591,1761408838062,390.05964956,0.0001707,2]
[392376592,1761408842662,180.7617843,0.00017168,2]
[392376593,1761408842700,319.2382157,0.00017168,2]
[392376594,1761408844293,300.0,0.00017169,2]
[392376595,1761408845115,1276.21,0.00017169,2]
[392376596,1761408845163,500.0,0.00017169,2]
[392376597,1761408845510,1386.15721148,0.00017071,2]
[392376598,1761408847465,1386.15721148,0.00017072,2]
[392376599,1761408847556,500.0,0.00017168,2]
[392376600,1761408847601,500.0,0.00017168,2]
[392376601,1761408847683,500.0,0.00017168,2]
[392376602,1761408847728,500.0,0.00017168,2]
[392376603,1761408847783,500.0,0.00017168,2]
[392376604,1761408847845,500.0,0.00017168,2]
[392376605,1761408847904,500.0,0.00017168,2]
[392376606,1761408847950,500.0,0.00017168,2]
[392376607,1761408847999,500.0,0.00017168,2]
[392376608,1761408848054,500.0,0.00017168,2]
[392376609,1761408848110,151.48557704,0.00017168,2]
[392376610,1761408848150,348.51442296,0.00017168,2]
[392376611,1761408848232,500.0,0.00017168,2]
[392376612,1761408848294,500.0,0.00017168,2]
[392376613,1761408848335,500.0,0.00017168,2]
[392376614,1761408848387,500.0,0.00017168,2]
[392376615,1761408848430,500.0,0.00017168,2]
[392376616,1761408848486,500.0,0.00017168,2]
[392376617,1761408848538,500.0,0.00017168,2]
[392376618,1761408848592,236.6523741,0.00017168,2]
[392376619,1761408848646,500.0,0.00017168,2]
[392376620,1761408848695,500.0,0.00017168,2]
[392376621,1761408849451,1386.15721148,0.00017072,2]
[392376622,1761408850765,500.0,0.00017169,2]
[392376623,1761408851466,1386.15721148,0.00017073,2]
[392376624,1761408851535,1044.78,0.00017169,2]
[392376625,1761408852284,500.0,0.00017168,2]
[392376626,1761408853451,97.74877998,0.00017073,2]
[392376627,1761408855606,-1288.4084315,0.00017073,2]
[392376628,1761408855652,-500.0,0.00017169,2]
[392376629,1761408855700,-500.0,0.00017169,2]
[392376630,1761408856517,500.0,0.00017168,2]
[392376631,1761408857596,500.0,0.00017168,2]
[392376632,1761408857649,500.0,0.00017168,2]
[392376633,1761408857695,500.0,0.00017168,2]
[392376634,1761408857740,500.0,0.00017168,2]
[392376635,1761408857785,500.0,0.00017168,2]
[392376636,1761408857834,500.0,0.00017169,2]
[392376637,1761408857876,500.0,0.00017168,2]
[392376638,1761408857919,500.0,0.00017168,2]
[392376639,1761408857968,500.0,0.00017168,2]
[392376640,1761408858015,423.193137,0.00017168,2]
[392376641,1761408899406,844.743237,0.00013699,2]
[392376643,1761408905987,7144.228411,0.00016171,2]
[392376644,1761408952241,196.0,0.00016,2]
[392376645,1761408952703,196.0,0.00016118,2]
[392376646,1761408953020,196.0,0.00016235,2]
[392376647,1761408953322,196.0,0.00016353,2]
[392376648,1761408953618,196.0,0.00016471,2]
[392376649,1761408953921,196.0,0.00016588,2]
[392376650,1761408954217,196.0,0.00016706,2]
[392376651,1761408954512,196.0,0.00016824,2]
[392376652,1761408954815,196.0,0.00016941,2]
[392376653,1761408955237,196.0,0.00017059,2]
[392376655,1761408979936,1034.5739178,0.00016169,2]
[392376656,1761409028116,341.3021934,0.00017068,2]
[392376657,1761409043789,4831.868709,0.00016168,2]
[392376664,1761409071955,196.0,0.00016,2]
[392376665,1761409072312,196.0,0.000165,2]
[392376666,1761409072650,196.0,0.00017,2]
[392376667,1761409084777,214.66511427,0.00017083,2]
[392376668,1761409113707,1029.60006553,0.00017069,2]
[392376669,1761409113748,10000.01,0.00017069,2]
[392376670,1761409113788,10000.01,0.00017069,2]
[392376671,1761409115969,-215.53506521,0.00017069,2]
[392376672,1761409190688,196.0,0.0001705,2]
[392376673,1761409191678,302.69645459,0.00016527,2]
[392376674,1761409199457,194.52940329,0.00017069,2]
[392376675,1761409202093,289.0,0.00017068,2]
[392376676,1761409203634,300.0,0.00017068,2]
[392376677,1761409204105,300.0,0.00017068,2]
[392376678,1761409204283,300.0,0.00017068,2]
[392376679,1761409204422,300.0,0.00017068,2]
[392376680,1761409205930,891.48,0.00017068,2]
[392376681,1761409206250,1200.0,0.00017068,2]
[392376682,1761409211771,178.85,0.00017059,2]
[392376683,1761409216511,1330.42,0.00017068,2]
[392376684,1761409218484,298.63941919,0.00017058,2]
[392376685,1761409224100,2867.05,0.00017068,2]
[392376686,1761409226978,874.8,0.00017068,2]
[392376687,1761409233078,176.54472293,0.00017068,2]
[392376688,1761409233119,323.45527707,0.00017068,2]
[392376689,1761409233169,500.0,0.00017068,2]
[392376690,1761409233213,500.0,0.00017068,2]
[392376691,1761409233260,234.29820206,0.00017068,2]
[392376692,1761409233310,500.0,0.00017068,2]
[392376693,1761409233359,500.0,0.00017068,2]
[392376694,1761409233416,500.0,0.00017068,2]
[392376695,1761409233468,500.0,0.00017068,2]
[392376696,1761409233519,500.0,0.00017068,2]
[392376697,1761409233579,500.0,0.00017068,2]
[392376698,1761409233632,500.0,0.00017068,2]
[392376699,1761409233685,500.0,0.00017068,2]
[392376700,1761409233732,355.0,0.00017068,2]
[392376701,1761409233787,500.0,0.00017068,2]
[392376702,1761409233836,500.0,0.00017068,2]
[392376703,1761409233891,500.0,0.00017068,2]
[392376704,1761409233937,500.0,0.00017068,2]
[392376705,1761409233987,500.0,0.00017068,2]
[392376706,1761409234034,500.0,0.00017068,2]
[392376707,1761409234081,500.0,0.00017068,2]
[392376708,1761409234132,500.0,0.00017068,2]
[392376709,1761409234180,87.25652087,0.00017068,2]
[392376710,1761409258865,5000.0,0.00017066,2]
[392376711,1761409266683,4431.3180183,0.00017066,2]
[392376712,1761409266976,300.0,0.00017066,2]
[392376713,1761409275101,268.6919817,0.00017066,2]
[392376714,1761409275145,3762.75587002,0.00017066,2]
[392376715,1761409280371,250.0,0.00015889,2]
[392376716,1761409282903,5000.0,0.00017066,2]
[392376717,1761409312939,196.0,0.00016,2]
[392376718,1761409313249,196.0,0.00017,2]
[392376719,1761409323355,300.0,0.00017066,2]
[392376720,1761409328664,1293.6668878,0.00017066,2]
[392376721,1761409330999,552.98,0.00017057,3]
[392376722,1761409340704,168.0,0.0001699,2]
[392376723,1761409352378,424.63918781,0.00017066,2]
[392376724,1761409352968,500.0,0.00017066,2]
[392376725,1761409353018,500.0,0.00017066,2]
[392376726,1761409353318,500.0,0.00017066,2]
[392376727,1761409353371,500.0,0.00017066,2]
[392376728,1761409353416,355.72370517,0.00017066,2]
[392376729,1761409353519,65.98021922,0.00017066,2]
[392376730,1761409353557,434.01978078,0.00017066,2]
[392376731,1761409353675,500.0,0.00017066,2]
[392376732,1761409353732,500.0,0.00017066,2]
[392376733,1761409353778,500.0,0.00017066,2]
[392376734,1761409353824,500.0,0.00017066,2]
[392376735,1761409353920,500.0,0.00017066,2]
[392376736,1761409353972,500.0,0.00017066,2]
[392376737,1761409358442,1200.0,0.00017066,2]
[392376738,1761409378736,-173.75805576,0.00017067,2]
[392376739,1761409384463,300.0,0.00017066,2]
[392376740,1761409408882,327.66927586,0.00016968,2]
[392376741,1761409429211,500.0,0.00017066,2]
[392376742,1761409430026,-172.81061943,0.00017067,2]
[392376743,1761409430164,196.0,0.0001705,2]
[392376744,1761409432448,-254.94917353,0.00017067,2]
[392376745,1761409444875,300.0,0.00017066,2]
[392376746,1761409466230,500.0,0.00017066,2]
[392376747,1761409468295,500.0,0.00017066,2]
[392376748,1761409468857,854.33,0.00017066,2]
[392376749,1761409478957,1274.99,0.00017066,2]
[392376750,1761409481201,500.0,0.00017066,2]
[392376751,1761409485721,500.0,0.00017066,2]
[392376752,1761409488905,838.35,0.00017066,2]
[392376753,1761409489257,1377.31,0.00017066,2]
[392376754,1761409493702,500.0,0.00017066,2]
[392376755,1761409495294,246.82383317,0.0001653,2]
[392376756,1761409496985,444.28289971,0.0001653,2]
[392376757,1761409497926,500.0,0.00017066,2]
[392376758,1761409498722,789.83626616,0.0001653,2]
[392376759,1761409502888,300.0,0.00017066,2]
[392376760,1761409502938,874.08700096,0.00016968,2]
[392376761,1761409502978,8779.14306023,0.00016968,2]
[392376762,1761409504593,1200.0,0.00017066,2]
[392376763,1761409506200,20.86693977,0.00017059,2]
[392376772,1761409516795,-130.13306023,0.00017059,2]
[392376773,1761409516844,-151.0,0.00017059,2]
[392376774,1761409516894,-151.0,0.00017059,2]
[392376775,1761409516944,-151.0,0.00017059,2]
[392376776,1761409516993,-213.96859442,0.00017059,2]
[392376777,1761409517042,-300.0,0.00017066,2]
[392376778,1761409517091,-300.0,0.00017066,2]
[392376779,1761409517141,-840.27,0.00017066,2]
[392376780,1761409517190,-500.0,0.00017066,2]
[392376781,1761409517243,-490.83710561,0.00017066,2]
[392376782,1761409517295,-1216.13,0.00017066,2]
[392376784,1761409521910,500.0,0.00017066,2]
[392376785,1761409526252,500.0,0.00017066,2]
[392376786,1761409527031,111.33247948,0.00017066,2]
[392376790,1761409554479,196.0,0.00016,2]
[392376791,1761409554857,196.0,0.00016333,2]
[392376792,1761409555242,196.0,0.00016667,2]
[392376793,1761409555548,196.0,0.00017,2]
[392376800,1761409581478,9216.01,0.00016197,2]
[392376801,1761409581517,10000.01,0.00016197,2]
[392376802,1761409581556,10000.01,0.00016197,2]
[392376803,1761409581595,10000.01,0.00016197,2]
[392376804,1761409581639,5924.4878155,0.00016197,2]
[392376805,1761409588345,4075.5221845,0.00017059,2]
[392376806,1761409588387,924.4778155,0.00017059,2]
[392376808,1761409592823,-155.54830749,0.00017065,2]
[392376809,1761409595344,-144.45169251,0.00017065,2]
[392376810,1761409595366,-129.36506362,0.00017066,2]
[392376811,1761409599212,286.71061636,0.00016968,2]
[392376813,1761409604272,5000.0,0.00017059,2]
[392376814,1761409612103,4713.29938364,0.00017059,2]
[392376815,1761409612149,286.70061636,0.00017059,2]
[392376817,1761409619246,7382.3977462,0.00016069,2]
[392376818,1761409621210,-240.46367362,0.00017066,2]
[392376819,1761409621239,-10.31553829,0.00017066,2]
[392376820,1761409624176,-168.78025044,0.00017065,2]
[392376821,1761409626203,-131.21974956,0.00017065,2]
[392376822,1761409626227,-64.78025044,0.00017066,2]
[392376823,1761409628950,2330.91163744,0.00017059,2]
[392376824,1761409628974,2669.08836256,0.00017059,2]
[392376825,1761409629757,-186.0125625,0.00017065,2]
[392376826,1761409631876,-269.06291153,0.00017065,2]
[392376827,1761409633394,-44.92452597,0.00017065,2]
[392376828,1761409633416,-113.60732698,0.00017066,2]
[392376830,1761409640881,500.0,0.00017065,2]
[392376831,1761409642627,1798.20251815,0.00016901,2]
[392376832,1761409644838,-239.98752112,0.00017066,2]
[392376833,1761409647317,-202.39586679,0.00017066,2]
[392376834,1761409652027,5000.0,0.00017066,2]
[392376835,1761409652128,435.46402047,0.0001653,2]
[392376836,1761409652899,-155.36852801,0.00017066,2]
[392376837,1761409654289,783.83523685,0.0001653,2]
[392376838,1761409654904,-285.3218792,0.00017066,2]
[392376839,1761409656281,1393.48486551,0.0001653,2]
[392376840,1761409656760,-191.37,0.00017066,2]
[392376841,1761409658162,89.02335902,0.0001653,2]
[392376842,1761409658192,2088.29674334,0.0001653,2]
[392376843,1761409658704,-449.89635067,0.00017065,2]
[392376844,1761409660022,3135.3409474,0.0001653,2]
[392376845,1761409662460,-194.98700156,0.00017065,2]
[392376848,1761409668325,677.35426255,0.0001705,2]
[392376849,1761409669351,-338.46016691,0.00017065,2]
[392376850,1761409670288,196.0,0.00016,2]
[392376851,1761409670595,196.0,0.0001605,2]
[392376852,1761409670899,196.0,0.000161,2]
[392376853,1761409671214,196.0,0.0001615,2]
[392376854,1761409671479,-151.04746989,0.00017065,2]
[392376855,1761409671509,196.0,0.000162,2]